bitfinex-derivatives/quotes_SOLF0:USTF0_20230103
["timestamp","ask_amount","ask_price","bid_price","bid_amount"]
[1672771172747,0.06269333,12.864,12.855,15.50469334]
[1672771173799,0.06269333,12.864,12.857,15.44]
[1672771174008,0.06269333,12.864,12.858,5.0]
[1672771174218,0.06269333,12.864,12.858,20.44]
[1672771175061,0.06269333,12.864,12.858,15.44]
[1672771175899,0.06269333,12.864,12.857,15.44]
[1672771176214,0.06269333,12.864,12.855,15.50469334]
[1672771177895,20.44,12.867,12.864,0.03195165]
[1672771178106,15.44,12.867,12.864,0.03195165]
[1672771178313,5.0,12.866,12.855,15.44]
[1672771178948,0.06926973,12.865,12.856,0.06273292]
[1672771182938,0.06926973,12.865,12.858,5.0]
[1672771183988,0.06926973,12.865,12.857,15.44]
[1672771187670,0.06926973,12.865,12.86,15.44]
[1672771188302,0.06926973,12.865,12.858,15.44]
[1672771188823,0.06926973,12.865,12.856,15.50273292]
[1672771191870,60.5582,12.868,12.865,0.05563812]
[1672771198808,45.1182,12.868,12.865,0.05563812]
[1672771199536,65.44,12.866,12.862,0.06458087]
[1672771199749,50.0,12.863,12.853,15.44]
[1672771199962,50.0,12.863,12.852,15.44]
[1672771200172,5.0,12.862,12.852,15.44]
[1672771200587,5.0,12.862,12.853,0.0606319]
[1672771200803,0.06971969,12.861,12.853,0.0606319]
[1672771201538,0.06971969,12.861,12.855,15.44]
[1672771202590,0.06971969,12.861,12.853,15.5006319]
[1672771205745,0.06971969,12.861,12.853,0.0606319]
[1672771212050,50.0,12.854,12.831,58.45]
[1672771212366,5.0,12.853,12.846,15.44]
[1672771212780,5.0,12.853,12.845,15.38]
[1672771213195,5.0645057,12.853,12.845,15.44441143]
[1672771214673,5.0645057,12.853,12.845,0.06441143]
[1672771215408,15.44,12.851,12.845,0.06441143]
[1672771215726,5.0,12.85,12.845,0.06441143]
[1672771216460,5.0,12.852,12.845,0.06441143]
[1672771216667,20.5045057,12.853,12.845,0.06441143]
[1672771216668,0.0645057,12.853,12.845,0.06441143]
[1672771216885,0.0645057,12.853,12.846,15.44]
[1672771217090,0.0645057,12.853,12.848,15.44]
[1672771220139,0.0645057,12.853,12.846,15.38]
[1672771220562,0.0645057,12.853,12.847,7.72]
[1672771221818,0.0645057,12.853,12.845,0.06441143]
[1672771222025,5.0645057,12.853,12.845,0.06441143]
[1672771222242,7.72,12.852,12.845,0.06441143]
[1672771222453,5.0,12.851,12.845,0.06441143]
[1672771224659,50.8568057,12.853,12.845,0.06441143]
[1672771226547,50.637379,12.853,12.845,0.06441143]
[1672771227600,50.69832717,12.853,12.845,0.06441143]
[1672771229808,7.72,12.852,12.845,0.06441143]
[1672771230229,7.72,12.851,12.845,0.06441143]
[1672771231173,7.72,12.849,12.838,7.67]
[1672771231390,57.72,12.844,12.833,7.67]
[1672771231701,7.72,12.842,12.831,7.72]
[1672771232222,7.68,12.839,12.832,0.06281296]
[1672771233383,12.78804195,12.841,12.832,0.06281296]
[1672771233594,0.06804195,12.841,12.832,0.06281296]
[1672771234010,0.06804195,12.841,12.833,7.72]
[1672771234223,0.06804195,12.841,12.835,7.67]
[1672771234858,0.06804195,12.841,12.836,7.72]
[1672771239693,0.06804195,12.841,12.838,7.72]
[1672771239903,0.07034459,12.844,12.84,7.72]
[1672771240109,0.06453997,12.846,12.841,7.72]
[1672771240324,53.3277,12.852,12.841,7.72]
[1672771240325,0.07016804,12.848,12.841,7.72]
[1672771240637,0.06518831,12.849,12.841,7.72]
[1672771243580,0.06518831,12.849,12.84,0.06303934]
[1672771243581,7.78518831,12.849,12.84,0.06303934]
[1672771244316,5.0,12.848,12.84,0.06303934]
[1672771244529,50.0,12.844,12.84,0.06303934]
[1672771244840,5.0,12.843,12.84,0.06303934]
[1672771245052,5.0,12.843,12.833,7.72]
[1672771245890,0.06339134,12.842,12.833,7.72]
[1672771247994,7.78339134,12.842,12.831,7.67]
[1672771248205,0.06389723,12.841,12.831,7.67]
[1672771248414,5.06389723,12.841,12.831,7.67]
[1672771256294,0.06389723,12.841,12.833,7.67]
[1672771256505,0.06223816,12.841,12.833,7.67]
[1672771258073,0.06223816,12.841,12.831,7.72]
[1672771258287,0.06768762,12.84,12.831,7.72]
[1672771258703,0.06768762,12.84,12.833,7.72]
[1672771259133,5.0,12.841,12.84,0.0571784]
[1672771259345,57.72,12.844,12.84,0.0571784]
[1672771260290,7.72,12.844,12.84,0.0571784]
[1672771260500,7.72,12.842,12.84,0.0571784]
[1672771260814,50.0,12.844,12.84,0.0571784]
[1672771262807,57.65,12.844,12.84,0.0571784]
[1672771268168,49.88395658,12.846,12.84,0.0571784]
[1672771269847,7.72,12.844,12.84,0.0571784]
[1672771270263,50.0,12.845,12.84,0.0571784]
[1672771273209,7.65,12.844,12.84,0.0571784]
[1672771273524,5.0,12.843,12.84,0.0571784]
[1672771273840,4.82771716,12.843,12.838,0.06658849]
[1672771274576,4.82771716,12.843,12.838,8.849e-05]
[1672771274786,4.82771716,12.843,12.833,7.67]
[1672771275834,0.06968673,12.842,12.833,7.67]
[1672771277623,7.78968673,12.842,12.831,7.72]
[1672771277837,0.07015731,12.841,12.831,7.72]
[1672771278048,5.07015731,12.841,12.831,7.72]
[1672771280887,0.07015731,12.841,12.831,7.72]
[1672771281098,0.07015731,12.841,12.835,7.72]
[1672771281412,0.06392249,12.842,12.836,7.67]
[1672771281724,0.06090636,12.843,12.839,7.72]
[1672771281936,5.0,12.844,12.839,7.72]
[1672771282144,55.06266409,12.845,12.839,7.72]
[1672771282355,50.06266409,12.845,12.839,7.72]
[1672771282780,0.06266409,12.845,12.839,7.72]
[1672771283303,50.06266409,12.845,12.839,7.72]
[1672771285403,5.0,12.844,12.837,7.72]
[1672771286033,5.0,12.844,12.835,7.67]
[1672771286348,5.06210091,12.844,12.835,7.67]
[1672771286876,5.06210091,12.844,12.836,3.87]
[1672771287085,5.06612946,12.844,12.836,3.86]
[1672771288451,5.06612946,12.844,12.837,3.87]
[1672771288664,55.07061488,12.845,12.837,3.87]
[1672771288977,50.07061488,12.845,12.837,3.87]
[1672771289187,49.94754564,12.845,12.837,3.87]
[1672771290239,50.01650319,12.845,12.837,3.93537207]
[1672771292023,50.01650319,12.845,12.84,3.84]
[1672771292235,50.01650319,12.845,12.842,3.87]
[1672771292440,49.94754564,12.845,12.842,3.87]
[1672771293601,49.94754564,12.845,12.84,3.84]
[1672771294649,49.94754564,12.845,12.838,3.87]
[1672771295807,3.84,12.843,12.837,0.06537207]
[1672771296752,5.06719862,12.844,12.837,0.06537207]
[1672771297802,0.06719862,12.844,12.838,3.87]
[1672771299902,0.06719862,12.844,12.837,0.06537207]
[1672771301164,0.06719862,12.844,12.839,3.87]
[1672771301369,3.87,12.848,12.844,0.12183473]
[1672771301581,58.36,12.852,12.844,3.99183473]
[1672771301793,54.94754564,12.856,12.847,3.84]
[1672771302115,54.94754564,12.856,12.849,3.87]
[1672771302425,54.94754564,12.856,12.848,3.93453494]
[1672771302847,3.84,12.853,12.848,0.06453494]
[1672771304952,12.72,12.854,12.848,0.06453494]
[1672771305898,7.72,12.854,12.848,0.06453494]
[1672771307476,7.66,12.852,12.848,0.06453494]
[1672771308532,7.73,12.854,12.848,0.06453494]
[1672771308741,5.0,12.853,12.848,0.06453494]
[1672771309897,7.73,12.854,12.848,0.06453494]
[1672771310215,7.71,12.855,12.848,0.06453494]
[1672771310527,5.0,12.854,12.848,0.06453494]
[1672771311159,7.71,12.855,12.848,0.06453494]
[1672771313048,49.94754564,12.856,12.848,0.06453494]
[1672771313676,49.75513478,12.856,12.848,0.06453494]
[1672771316512,44.95451383,12.857,12.848,0.06453494]
[1672771316723,49.75513478,12.856,12.848,0.06453494]
[1672771321243,44.95451383,12.857,12.848,0.06453494]
[1672771321975,49.75513478,12.856,12.848,0.06453494]
[1672771322182,44.95451383,12.857,12.848,0.06453494]
[1672771322393,49.75513478,12.856,12.848,0.06453494]
[1672771325864,44.95451383,12.857,12.848,0.06453494]
[1672771326075,94.70964861,12.857,12.848,0.06453494]
[1672771328596,94.5403992,12.857,12.848,0.06453494]
[1672771330489,94.5403992,12.857,12.849,7.73]
[1672771331118,44.78526442,12.857,12.849,7.73]
[1672771331325,94.5403992,12.857,12.849,7.73]
[1672771331537,5.0,12.856,12.849,7.51485545]
[1672771332801,5.0,12.856,12.848,0.06453494]
[1672771333116,71.06,12.856,12.848,0.06453494]
[1672771334588,7.72,12.853,12.848,0.06453494]
[1672771334793,5.0,12.852,12.848,3.494e-05]
[1672771335002,63.36,12.852,12.848,3.494e-05]
[1672771335209,5.0,12.851,12.844,0.36669995]
[1672771335845,5.0,12.851,12.844,0.12183473]
[1672771336264,5.0,12.851,12.844,0.36669995]
[1672771337840,5.06497332,12.852,12.844,0.36669995]
[1672771338472,5.06497332,12.852,12.844,0.12183473]
[1672771338787,5.06497332,12.852,12.844,0.36669995]
[1672771339100,0.06497332,12.852,12.844,0.36669995]
[1672771339731,0.06497332,12.852,12.844,0.12183473]
[1672771340154,0.06497332,12.852,12.844,0.36669995]
[1672771340365,0.06497332,12.852,12.844,0.12183473]
[1672771340677,0.06497332,12.852,12.844,0.36669995]
[1672771340887,0.06497332,12.852,12.844,0.24486522]
[1672771342884,0.06497332,12.852,12.843,0.06981602]
[1672771343515,0.06497332,12.852,12.844,0.24486522]
[1672771346146,5.0,12.851,12.842,7.73]
[1672771348250,57.71,12.847,12.836,7.73]
[1672771348459,5.06710597,12.846,12.836,7.73]
[1672771349509,7.66,12.845,12.834,7.73]
[1672771349824,5.0,12.844,12.834,7.73]
[1672771352443,7.66,12.845,12.834,7.73]
[1672771355815,0.06710597,12.846,12.836,7.73]
[1672771356024,0.06495331,12.845,12.836,7.73]
[1672771358443,0.06495331,12.845,12.834,7.7]
[1672771358653,0.06698598,12.844,12.834,7.7]
[1672771359180,12.73,12.846,12.844,0.16779018]
[1672771359390,5.0,12.845,12.835,5.0]
[1672771359600,5.0,12.845,12.834,7.7]
[1672771359809,7.66,12.843,12.833,7.7]
[1672771360232,0.06125094,12.842,12.834,0.06290153]
[1672771361811,5.06125094,12.842,12.834,0.06290153]
[1672771367062,5.06125094,12.842,12.824,50.3566]
[1672771367063,50.0,12.838,12.828,7.73]
[1672771367273,5.0,12.837,12.828,7.73]
[1672771367588,12.72,12.837,12.826,7.7]
[1672771368008,0.06777576,12.836,12.826,7.7]
[1672771379673,7.72,12.837,12.836,0.00980165]
[1672771383028,5.0,12.836,12.832,0.06526906]
[1672771383347,7.72,12.835,12.832,0.06526906]
[1672771383549,7.72,12.835,12.829,0.06631644]
[1672771383764,7.72,12.835,12.828,0.07054631]
[1672771384922,5.07125834,12.836,12.828,0.07054631]
[1672771386605,0.07125834,12.836,12.828,0.07054631]
[1672771390596,50.0,12.829,12.828,0.07054631]
[1672771390805,50.0,12.829,12.82,7.73]
[1672771391325,5.0,12.828,12.82,7.73]
[1672771391749,5.06463165,12.828,12.82,7.73]
[1672771395433,0.06463165,12.828,12.82,7.73]
[1672771395644,5.06463165,12.828,12.82,7.73]
[1672771397115,0.06463165,12.828,12.82,7.73]
[1672771398691,5.06463165,12.828,12.82,7.73]
[1672771399220,5.06463165,12.828,12.808,5.0]
[1672771399421,0.06379761,12.822,12.817,7.73]
[1672771399630,0.06634945,12.824,12.817,7.73]
[1672771399846,0.06023772,12.825,12.817,7.73]
[1672771400056,0.06023772,12.825,12.815,7.73]
[1672771400267,0.06985265,12.824,12.813,7.73]
[1672771400472,0.065018,12.823,12.813,7.73]
[1672771405098,12.73,12.825,12.823,0.0426739]
[1672771405314,7.73,12.825,12.823,0.0426739]
[1672771406470,5.0,12.824,12.813,7.73]
[1672771406674,5.0,12.824,12.808,5.0]
[1672771406675,7.72,12.823,12.808,5.0]
[1672771406889,7.72,12.823,12.811,7.7]
[1672771407099,5.0,12.822,12.811,7.7]
[1672771407519,0.0685626,12.821,12.811,7.7]
[1672771411093,0.0685626,12.821,12.812,3.88]
[1672771412354,50.0,12.82,12.812,3.88]
[1672771412566,50.0,12.82,12.804,5.0]
[1672771412567,3.88,12.816,12.806,3.88]
[1672771412777,5.06844665,12.815,12.806,3.88]
[1672771413301,0.06844665,12.815,12.806,3.88]
[1672771415082,5.06844665,12.815,12.806,3.88]
[1672771415714,3.84,12.814,12.805,3.88]
[1672771415926,3.90259191,12.814,12.805,3.88]
[1672771418765,3.76139201,12.814,12.805,3.88]
[1672771419915,3.88,12.813,12.803,3.88]
[1672771420125,0.0659342,12.812,12.803,3.88]
[1672771420339,0.0659342,12.812,12.805,3.86]
[1672771420550,0.06546233,12.813,12.805,3.86]
[1672771425285,0.06546233,12.813,12.81,3.86]
[1672771425495,0.06082208,12.816,12.81,3.86]
[1672771425915,0.06082208,12.816,12.812,3.88]
[1672771431488,50.0,12.82,12.816,0.06896033]
[1672771432534,0.07097871,12.822,12.816,0.06896033]
[1672771432748,0.07097871,12.822,12.821,3.88]
[1672771433064,0.06916422,12.826,12.821,3.88]
[1672771434219,0.06916422,12.826,12.823,3.86]
[1672771434428,0.0626302,12.829,12.823,3.86]
[1672771435797,3.88,12.828,12.82,0.0702378]
[1672771436106,0.0626302,12.829,12.822,3.86]
[1672771436318,0.0626302,12.829,12.824,3.86]
[1672771438001,0.0626302,12.829,12.828,3.88]
[1672771438317,3.88,12.838,12.828,3.88]
[1672771438318,0.06090164,12.833,12.828,3.88]
[1672771438526,5.07042267,12.835,12.828,3.88]
[1672771438736,0.07042267,12.835,12.828,3.88]
[1672771439681,0.07042267,12.835,12.827,7.75]
[1672771440838,0.07042267,12.835,12.829,7.75]
[1672771442626,0.07042267,12.835,12.83,7.75]
[1672771444095,0.07042267,12.835,12.828,7.7]
[1672771445039,0.07042267,12.835,12.827,7.75]
[1672771445247,0.07042267,12.835,12.826,0.07112925]
[1672771445456,44.9091,12.84,12.835,0.03545155]
[1672771448718,52.6091,12.84,12.835,0.03545155]
[1672771452607,5.0,12.839,12.835,0.03545155]
[1672771452920,5.0,12.839,12.833,0.06266397]
[1672771452921,7.75,12.837,12.833,0.06266397]
[1672771454076,5.0,12.836,12.826,7.75]
[1672771454393,5.0,12.834,12.824,7.75]
[1672771455130,0.06491442,12.833,12.825,0.07129124]
[1672771459862,7.75,12.83,12.825,0.07129124]
[1672771460068,5.0,12.829,12.825,0.07129124]
[1672771461330,7.75,12.83,12.825,0.07129124]
[1672771465645,7.7,12.828,12.825,0.07129124]
[1672771465855,7.7,12.828,12.822,0.06011398]
[1672771466068,7.7,12.828,12.821,0.07096782]
[1672771466271,7.7,12.828,12.82,0.06839708]
[1672771466483,7.55586059,12.828,12.82,0.06839708]
[1672771467224,7.75,12.826,12.82,0.06839708]
[1672771471637,7.71,12.823,12.82,9.708e-05]
[1672771471848,7.71,12.823,12.816,0.06896033]
[1672771473634,7.71,12.819,12.816,0.06896033]
[1672771473845,7.75,12.818,12.816,0.06896033]
[1672771474896,7.77,12.818,12.816,0.06896033]
[1672771476677,5.0,12.817,12.806,7.77]
[1672771476893,0.06272867,12.816,12.806,7.77]
[1672771477839,0.06272867,12.816,12.81,7.73]
[1672771483827,0.06272867,12.816,12.808,7.69]
[1672771490136,7.77,12.819,12.816,0.11837403]
[1672771491087,5.0,12.818,12.808,7.69]
[1672771491397,7.77,12.815,12.809,0.07070174]
[1672771491607,7.77,12.815,12.808,0.06860607]
[1672771491819,7.77,12.815,12.807,0.06079866]
[1672771492344,0.06764459,12.816,12.807,0.06079866]
[1672771495181,0.06764459,12.816,12.807,55.06079866]
[1672771495392,0.00764459,12.816,12.814,7.77]
[1672771495601,7.77,12.829,12.814,7.77]
[1672771495916,7.77,12.829,12.818,7.77]
[1672771496335,0.06262143,12.828,12.819,0.06998545]
[1672771496542,5.06262143,12.828,12.819,0.06998545]
[1672771498223,12.83262143,12.828,12.819,0.06998545]
[1672771498437,7.76,12.824,12.819,0.06998545]
[1672771499490,7.77,12.826,12.819,0.06998545]
[1672771500009,12.83262143,12.828,12.819,0.06998545]
[1672771500857,7.83262143,12.828,12.819,0.06998545]
[1672771503379,5.0,12.827,12.819,0.06998545]
[1672771503592,63.47,12.827,12.819,0.06998545]
[1672771505899,5.0,12.827,12.819,0.06998545]
[1672771507371,7.77,12.825,12.819,0.06998545]
[1672771508738,7.77,12.82,12.807,7.77]
[1672771508947,7.77,12.818,12.807,7.77]
[1672771509261,5.0,12.817,12.807,7.77]
[1672771509682,0.06453069,12.816,12.808,0.06317894]
[1672771514620,7.77,12.815,12.808,0.06317894]
[1672771515362,7.77,12.813,12.808,0.06317894]
[1672771518199,7.77,12.815,12.808,0.06317894]
[1672771522200,0.01584258,12.808,12.804,7.75]
[1672771529550,0.01584258,12.808,12.802,7.77]
[1672771529971,0.01584258,12.808,12.801,7.77]
[1672771530181,0.01584258,12.808,12.798,7.75]
[1672771530390,0.06230841,12.807,12.798,7.75]
[1672771531656,7.83230841,12.807,12.795,7.69]
[1672771532286,0.06230841,12.807,12.797,7.69]
[1672771535434,7.83230841,12.807,12.796,7.77]
[1672771535746,5.06574602,12.806,12.796,7.77]
[1672771537330,7.77,12.799,12.797,0.06455305]
[1672771537539,5.0,12.798,12.787,7.77]
[1672771538169,0.06681557,12.797,12.788,0.06662627]
[1672771538693,0.06681557,12.797,12.789,7.77]
[1672771543635,7.83681557,12.797,12.788,0.06662627]
[1672771544054,5.0,12.796,12.788,0.06662627]
[1672771545104,0.06681557,12.797,12.788,0.06662627]
[1672771545421,0.06681557,12.797,12.789,7.7]
[1672771545834,0.06681557,12.797,12.788,0.06662627]
[1672771547415,0.06681557,12.797,12.789,7.7]
[1672771551725,7.77,12.798,12.797,0.15813503]
[1672771552773,7.77,12.799,12.797,0.15813503]
[1672771553194,12.77,12.798,12.793,0.06365274]
[1672771553403,7.77,12.794,12.781,52.9716]
[1672771553613,7.76,12.792,12.781,7.69]
[1672771554354,7.77,12.787,12.782,0.06358696]
[1672771554563,7.77,12.787,12.78,0.06656615]
[1672771554881,7.77,12.787,12.779,0.06682361]
[1672771558869,52.7878,12.787,12.779,0.06682361]
[1672771559815,7.77,12.785,12.779,0.06682361]
[1672771560861,0.07097238,12.788,12.779,7.75682361]
[1672771561182,0.07097238,12.788,12.782,7.69]
[1672771562340,0.07097238,12.788,12.786,7.77]
[1672771562651,5.0,12.8,12.787,12.69]
[1672771562969,5.0,12.8,12.791,7.77]
[1672771563177,56.747,12.802,12.791,7.77]
[1672771563387,0.06749381,12.801,12.792,0.06737171]
[1672771563598,0.06749381,12.801,12.792,7.76737171]
[1672771563800,0.06749381,12.801,12.794,7.77]
[1672771564649,0.06749381,12.801,12.796,7.7]
[1672771564963,0.06749381,12.801,12.797,5.0]
[1672771565180,0.06749381,12.801,12.792,0.06737171]
[1672771565487,7.77,12.8,12.792,0.06737171]
[1672771565701,5.0,12.799,12.792,0.06737171]
[1672771566746,7.77,12.8,12.792,0.06737171]
[1672771567593,7.77,12.799,12.792,0.06737171]
[1672771568533,51.5779,12.8,12.792,0.06737171]
[1672771569696,7.77,12.799,12.792,0.06737171]
[1672771570004,50.0,12.795,12.792,0.06737171]
[1672771570223,5.06658972,12.798,12.79,7.77]
[1672771570531,5.0,12.799,12.782,5.0]
[1672771571375,0.06099575,12.795,12.786,0.06467006]
[1672771572420,7.76,12.793,12.786,0.06467006]
[1672771572634,7.77,12.789,12.786,0.06467006]
[1672771572848,7.77,12.789,12.783,0.06039756]
[1672771573055,7.77,12.789,12.782,0.0679561]
[1672771573261,7.77,12.789,12.781,0.06630059]
[1672771573791,0.11575268,12.781,12.777,7.77]
[1672771574740,0.11575268,12.781,12.779,7.77]
[1672771575052,0.11575268,12.781,12.78,7.77]
[1672771576840,0.11575268,12.781,12.779,7.77]
[1672771579575,0.11575268,12.781,12.78,7.77]
[1672771580410,0.11575268,12.781,12.778,7.75]
[1672771581148,0.11575268,12.781,12.773,7.7]
[1672771582202,7.77,12.779,12.768,7.69]
[1672771582411,5.06347816,12.778,12.768,7.69]
[1672771586510,7.77,12.769,12.75,50.0]
[1672771586714,0.06042437,12.764,12.75,50.0]
[1672771586928,0.06390907,12.761,12.75,50.0]
[1672771587140,5.0,12.775,12.761,5.0]
[1672771588084,5.0,12.775,12.764,0.06347655]
[1672771588299,0.06013395,12.772,12.764,7.83347655]
[1672771588605,0.06013395,12.772,12.764,7.81347655]
[1672771590393,0.06013395,12.772,12.765,7.77]
[1672771590917,0.06013395,12.772,12.768,7.75]
[1672771591232,3.395e-05,12.772,12.771,7.69]
[1672771591446,44.4086,12.784,12.772,5.0]
[1672771591656,12.77,12.787,12.775,7.7]
[1672771592499,0.06046442,12.782,12.775,7.7]
[1672771593761,0.06046442,12.782,12.776,7.69]
[1672771594490,0.06046442,12.782,12.778,7.77]
[1672771594915,0.06046442,12.782,12.779,7.77]
[1672771594916,0.0005171,12.782,12.779,7.77]
[1672771595128,7.77,12.796,12.781,7.69]
[1672771595437,7.77,12.796,12.785,7.75]
[1672771596071,0.06459077,12.795,12.786,0.06048067]
[1672771596284,5.06459077,12.795,12.786,0.06048067]
[1672771598071,7.77,12.794,12.786,0.06048067]
[1672771598280,5.0,12.793,12.786,0.06048067]
[1672771598492,12.77,12.793,12.786,0.06048067]
[1672771598701,7.76,12.791,12.786,0.06048067]
[1672771600280,12.77,12.793,12.786,0.06048067]
[1672771600488,20.61,12.793,12.786,0.06048067]
[1672771600693,15.61,12.793,12.786,0.06048067]
[1672771602697,15.61,12.791,12.786,0.06048067]
[1672771603011,5.0,12.79,12.786,0.06048067]
[1672771603219,20.53,12.79,12.786,0.06048067]
[1672771603423,5.0,12.789,12.777,15.61]
[1672771603638,5.0,12.788,12.777,15.61]
[1672771603849,20.61,12.788,12.777,5.0]
[1672771604585,20.61,12.788,12.776,15.61]
[1672771604586,0.06358102,12.787,12.778,0.06341831]
[1672771608265,0.06358102,12.787,12.779,15.51]
[1672771608477,0.06358102,12.787,12.78,5.0]
[1672771609001,0.06358102,12.787,12.78,20.61]
[1672771609318,0.06358102,12.787,12.785,5.0]
[1672771609522,15.55,12.798,12.785,20.61]
[1672771609944,5.0,12.797,12.785,20.61]
[1672771610155,15.55,12.8,12.787,15.61]
[1672771610367,20.61,12.801,12.789,15.61]
[1672771610578,0.06189668,12.799,12.791,0.06343469]
[1672771610893,0.06189668,12.799,12.791,15.67343469]
[1672771620034,0.06189668,12.799,12.791,0.06343469]
[1672771623290,15.53,12.802,12.799,0.02840685]
[1672771624650,15.53,12.802,12.796,0.06223335]
[1672771624651,5.0,12.801,12.796,0.06223335]
[1672771624971,15.61,12.799,12.786,15.61]
[1672771625284,15.61,12.799,12.787,5.0]
[1672771625700,15.61,12.799,12.786,15.61]
[1672771625913,0.07109324,12.797,12.788,0.06340595]
[1672771627707,15.62109324,12.797,12.788,0.06340595]
[1672771628537,15.61,12.795,12.788,0.06340595]
[1672771628753,15.55,12.79,12.788,0.06340595]
[1672771628967,5.0,12.789,12.777,15.61]
[1672771629903,0.06983958,12.787,12.779,15.67674526]
[1672771630114,0.06480321,12.787,12.782,5.0]
[1672771630532,0.06480321,12.787,12.781,15.51]
[1672771631375,0.06480321,12.787,12.779,0.06674526]
[1672771634427,15.53,12.784,12.779,0.06674526]
[1672771634742,5.0,12.783,12.779,0.06674526]
[1672771634950,20.61,12.783,12.779,0.06674526]
[1672771635366,20.61,12.783,12.779,0.00674526]
[1672771637676,5.0,12.783,12.779,0.00674526]
[1672771638312,15.61,12.784,12.779,0.00674526]
[1672771645461,15.61,12.782,12.77,15.61]
[1672771645772,5.0,12.781,12.769,15.46]
[1672771645982,5.0,12.781,12.77,5.0]
[1672771646612,0.06830783,12.78,12.771,0.06493878]
[1672771646823,5.06830783,12.78,12.771,0.06493878]
[1672771647027,0.06830783,12.78,12.771,0.06493878]
[1672771648926,0.06830783,12.78,12.772,15.46]
[1672771649138,0.06830783,12.78,12.773,5.0]
[1672771650084,0.06830783,12.78,12.776,5.0]
[1672771650920,0.06830783,12.78,12.775,15.46]
[1672771657862,0.00419571,12.78,12.776,5.0]
[1672771658286,0.00419571,12.78,12.775,15.46]
[1672771660595,0.00419571,12.78,12.772,15.61]
[1672771660807,0.00419571,12.78,12.773,5.0]
[1672771662170,0.00419571,12.78,12.772,15.61]
[1672771662591,0.00419571,12.78,12.773,5.0]
[1672771665950,0.00419571,12.78,12.772,15.61]
[1672771667427,0.00419571,12.78,12.773,5.0]
[1672771667633,0.00419571,12.78,12.774,15.61]
[1672771667843,0.00419571,12.78,12.775,5.0]
[1672771669526,0.00419571,12.78,12.773,5.0]
[1672771670469,15.61,12.785,12.78,0.11954828]
[1672771670675,15.61,12.782,12.78,0.11954828]
[1672771672257,15.61,12.782,12.77,20.51]
[1672771672468,20.61,12.781,12.768,15.46]
[1672771673828,20.61,12.781,12.761,55.0]
[1672771674046,15.61,12.776,12.763,20.61]
[1672771675306,15.61,12.777,12.765,15.61]
[1672771675516,15.61,12.777,12.766,5.0]
[1672771675727,20.53,12.781,12.768,15.61]
[1672771675937,15.55,12.783,12.77,15.61]
[1672771676252,5.0,12.782,12.77,15.61]
[1672771676464,15.55,12.783,12.771,5.0]
[1672771676675,20.61,12.784,12.772,15.61]
[1672771676878,20.61,12.784,12.773,5.0]
[1672771677301,15.61,12.784,12.773,5.0]
[1672771679305,42.7579,12.785,12.773,20.61]
[1672771679508,65.61,12.796,12.773,5.0]
[1672771679722,45.2849,12.794,12.783,15.61]
[1672771679929,5.0,12.793,12.784,5.0]
[1672771680461,5.0,12.793,12.783,15.61]
[1672771680661,20.61,12.795,12.783,15.61]
[1672771682142,12.78,12.795,12.783,7.73]
[1672771682345,7.78,12.795,12.783,7.73]
[1672771682556,7.8,12.799,12.788,7.79]
[1672771682766,5.0,12.798,12.789,5.0]
[1672771683189,0.06071871,12.798,12.789,12.79]
[1672771683399,0.06071871,12.798,12.789,12.85898026]
[1672771684346,0.06071871,12.798,12.789,7.85898026]